bitfinex/quotes_SOLUSD_20241126
["timestamp","ask_amount","ask_price","bid_price","bid_amount"]
[1732657948706,21.67334485,230.99,230.92,21.67334485]
[1732657949733,21.67334485,230.97,230.9,21.67334485]
[1732657949938,21.67334485,230.97,230.89,26.00434485]
[1732657951016,21.67334485,230.96,230.88,21.67334485]
[1732657951519,21.67334485,230.95,230.88,21.67334485]
[1732657951725,23.83814485,230.97,230.9,21.67334485]
[1732657951931,21.67334485,230.96,230.89,21.67334485]
[1732657952129,23.83814485,230.97,230.89,21.67334485]
[1732657952332,21.67334485,230.96,230.88,21.67334485]
[1732657952518,21.67334485,230.95,230.87,21.67334485]
[1732657952727,21.67334485,230.93,230.86,21.67334485]
[1732657953233,21.67334485,230.88,230.82,4.3323]
[1732657953424,21.67334485,230.88,230.81,21.67334485]
[1732657953631,21.67334485,230.86,230.79,26.00604485]
[1732657953813,21.67334485,230.86,230.78,21.67334485]
[1732657954437,21.67334485,230.86,230.79,21.67334485]
[1732657955135,21.67334485,230.9,230.82,21.67334485]
[1732657956230,21.67334485,230.88,230.82,21.67334485]
[1732657956936,21.67334485,230.88,230.8,26.00594485]
[1732657957922,23.83894485,230.88,230.8,21.67334485]
[1732657958139,21.67334485,230.87,230.79,21.67334485]
[1732657958339,23.83884485,230.89,230.82,21.67334485]
[1732657958539,21.67334485,230.88,230.8,21.67334485]
[1732657958730,21.67334485,230.88,230.81,21.67334485]
[1732657959527,2.1655,230.89,230.75,6.0777]
[1732657959528,23.83884485,230.89,230.82,21.67334485]
[1732657960025,21.67334485,230.88,230.81,21.67334485]
[1732657961137,21.77334485,230.9,230.83,21.67334485]
[1732657961318,21.77334485,230.9,230.76,36.84054485]
[1732657961319,21.67334485,230.85,230.77,21.67334485]
[1732657961677,21.67334485,230.85,230.73,21.67334485]
[1732657961678,21.67334485,230.81,230.73,21.67334485]
[1732657961849,21.67334485,230.8,230.73,21.67334485]
[1732657962152,0.1,230.84,230.7,4.3346]
[1732657962153,21.67334485,230.79,230.72,21.67334485]
[1732657962351,21.67334485,230.81,230.74,21.67334485]
[1732657962839,21.67334485,230.83,230.76,21.67334485]
[1732657963018,21.67334485,230.83,230.76,26.00674485]
[1732657963223,0.1,230.84,230.77,21.67334485]
[1732657963418,21.67334485,230.85,230.77,21.67334485]
[1732657963639,41.67334485,230.84,230.77,21.67334485]
[1732657964248,21.67334485,230.83,230.76,26.00674485]
[1732657964545,41.67334485,230.84,230.77,21.67334485]
[1732657965956,41.67334485,230.84,230.77,26.00664485]
[1732657966335,15.3069,230.87,230.82,21.67334485]
[1732657966539,29.46101842,230.89,230.81,21.67334485]
[1732657966736,29.46101842,230.89,230.82,21.67334485]
[1732657966951,29.46101842,230.89,230.81,21.67334485]
[1732657967149,29.46101842,230.89,230.77,4.3333]
[1732657967336,5.62217357,230.89,230.83,21.67334485]
[1732657967536,29.46101842,230.89,230.82,21.67334485]
[1732657968654,21.67334485,230.88,230.81,26.00584485]
[1732657968831,5.62217357,230.89,230.82,21.67334485]
[1732657969032,29.46101842,230.89,230.82,21.67334485]
[1732657969631,5.62217357,230.89,230.83,21.67334485]
[1732657969948,21.67334485,230.88,230.81,4.3325]
[1732657970856,21.67334485,230.87,230.8,21.67334485]
[1732657971057,23.83894485,230.88,230.8,26.00604485]
[1732657971351,23.83894485,230.88,230.79,26.00624485]
[1732657971352,21.67334485,230.87,230.79,26.00624485]
[1732657971549,23.83894485,230.88,230.81,21.67334485]
[1732657971854,2.1656,230.88,230.82,21.67334485]
[1732657972252,27.29551842,230.89,230.82,21.67334485]
[1732657972443,29.46101842,230.89,230.82,21.67334485]
[1732657974439,20.0,230.86,230.8,21.67334485]
[1732657974646,20.0,230.85,230.8,21.67334485]
[1732657974936,7.78767357,230.89,230.82,21.67334485]
[1732657975136,29.46101842,230.89,230.82,21.67334485]
[1732657975760,20.0,230.85,230.8,21.67334485]
[1732657975962,7.78767357,230.89,230.82,21.67334485]
[1732657976137,7.78767357,230.89,230.7,11.70323942]
[1732657976138,21.67334485,230.87,230.8,21.67334485]
[1732657976451,13.53469427,230.87,230.79,13.53469427]
[1732657976684,2.1657,230.87,230.79,13.53469427]
[1732657976851,2.1657,230.87,230.81,13.53469427]
[1732657977555,2.2656,230.88,230.81,13.53469427]
[1732657978256,0.1,230.88,230.81,13.53469427]
[1732657978460,2.2656,230.88,230.81,13.53469427]
[1732657979539,2.1656,230.88,230.81,13.53469427]
[1732657980436,5.62217357,230.89,230.83,13.53469427]
[1732657980751,5.62217357,230.89,230.85,13.53469427]
[1732657980939,7.78767357,230.89,230.83,13.53469427]
[1732657981140,21.32236784,230.89,230.81,13.53469427]
[1732657981335,20.0,230.86,230.81,13.53469427]
[1732657981752,20.0,230.85,230.81,13.53469427]
[1732657982153,20.0,230.85,230.83,13.53469427]
[1732657982847,2.1657,230.87,230.83,13.53469427]
[1732657983934,5.62217357,230.89,230.85,13.53469427]
[1732657984135,5.62217357,230.89,230.88,13.53469427]
[1732657984357,5.62217357,230.89,230.88,17.86589427]
[1732657985964,5.62217357,230.89,230.88,31.40058854]
[1732657986176,5.1693726,231.01,230.88,31.40058854]
[1732657986338,15.689,231.03,230.88,31.40058854]
[1732657986339,15.689,231.03,230.99,13.53469427]
[1732657986674,15.689,231.03,230.98,13.53469427]
[1732657988163,17.8532,231.03,230.96,13.53469427]
[1732657988363,17.8532,231.03,230.94,13.53469427]
[1732657988364,13.53469427,231.02,230.94,13.53469427]
[1732657989069,13.53469427,231.0,230.92,13.53469427]
[1732657989262,13.53469427,230.98,230.9,13.53469427]
[1732657989564,13.63469427,231.0,230.92,13.53469427]
[1732657989946,20.0,230.97,230.92,13.53469427]
[1732657990552,22.1648,230.97,230.9,13.53469427]
[1732657991265,22.1648,230.97,230.92,13.53469427]
[1732657991967,22.1648,230.97,230.93,13.53469427]
[1732657992167,2.164,231.05,230.96,13.53469427]
[1732657992345,2.164,231.05,230.9,23.776884]
[1732657992346,2.164,231.05,230.99,13.53469427]
[1732657992551,2.164,231.05,230.89,15.1585]
[1732657992552,15.69869427,231.05,230.97,13.53469427]
[1732657992875,3.22805573,231.04,230.97,13.53469427]
[1732657993167,15.69869427,231.05,230.97,13.53469427]
[1732657993342,2.264,231.05,230.99,13.53469427]
[1732657993874,15.69869427,231.05,230.98,13.53469427]
[1732657995064,13.53469427,231.04,230.96,13.53469427]
[1732657995370,20.0,231.03,230.96,13.53469427]
[1732657995749,20.0,231.03,230.97,13.53469427]
[1732657996076,21.0985,231.08,230.89,15.1586]
[1732657996077,2.1639,231.07,231.02,13.53469427]
[1732657997865,2.6828625,231.11,231.06,13.53469427]
[1732657998081,2.6828625,231.11,231.04,13.53469427]
[1732657998387,16.21755677,231.11,231.03,13.53469427]
[1732657998555,16.21755677,231.11,231.04,13.53469427]
[1732658000157,13.53469427,231.09,231.02,13.53469427]
[1732658000470,20.0,231.1,231.03,13.53469427]
[1732658000471,33.53469427,231.1,231.03,13.53469427]
[1732658000671,20.0,231.1,231.03,13.53469427]
[1732658000975,20.0,231.1,231.04,13.53469427]
[1732658001348,20.0,231.1,230.96,23.776884]
[1732658001349,20.0,231.1,231.05,13.53469427]
[1732658001868,0.5193625,231.11,231.09,13.53469427]
[1732658002171,0.5193625,231.11,231.07,13.53469427]
[1732658002374,0.5193625,231.11,231.08,13.53469427]
[1732658002763,0.5193625,231.11,231.07,13.53469427]
[1732658003076,0.5193625,231.11,231.0,13.53469427]
[1732658003265,0.5193625,231.11,231.02,17.86309427]
[1732658003266,13.53469427,231.1,231.02,17.86309427]
[1732658003468,16.21755677,231.11,231.03,13.53469427]
[1732658003771,16.21755677,231.11,231.04,13.53469427]
[1732658004278,14.05405677,231.11,231.04,13.53469427]
[1732658004451,0.5193625,231.11,231.04,13.53469427]
[1732658005494,0.5193625,231.11,231.05,13.53469427]
[1732658007876,0.5193625,231.11,231.06,13.53469427]
[1732658008186,0.5193625,231.11,231.09,13.53469427]
[1732658009172,0.5193625,231.11,231.1,13.53469427]
[1732658009876,0.5193625,231.11,231.1,17.86179427]
[1732658010176,0.5193625,231.11,231.09,4.3273]
[1732658010755,0.5193625,231.11,231.09,17.86199427]
[1732658011662,0.5193625,231.11,231.1,13.53469427]
[1732658011863,0.5193625,231.11,231.1,17.86179427]
[1732658013584,0.5193625,231.11,231.1,4.3271]
[1732658013880,0.5193625,231.11,231.1,17.86179427]
[1732658021181,0.5193625,231.11,231.1,41.63867827]
[1732658021392,31.78209427,231.26,231.13,20.0]
[1732658021563,18.2474,231.26,231.2,13.53469427]
[1732658021982,16.0853,231.26,231.2,13.53469427]
[1732658022378,16.0853,231.26,231.2,17.85989427]
[1732658023186,0.1,231.28,231.22,13.53469427]
[1732658023495,2.2618,231.28,231.21,13.53469427]
[1732658023663,24.18030273,231.31,231.2,4.3252]
[1732658023664,15.69639427,231.3,231.22,13.53469427]
[1732658024374,2.1619,231.27,231.2,17.85989427]
[1732658024574,15.69659427,231.27,231.19,13.53469427]
[1732658024772,13.53469427,231.26,231.19,13.53469427]
[1732658025189,13.53469427,231.24,231.17,13.53469427]
[1732658025570,13.53469427,231.25,231.18,13.53469427]
[1732658026575,2.1622,231.24,231.18,13.53469427]
[1732658026778,2.1622,231.24,231.17,13.53469427]
[1732658027192,2.1622,231.24,231.18,13.53469427]
[1732658027694,2.1622,231.24,231.17,13.53469427]
[1732658027864,2.1622,231.24,231.15,4.3261]
[1732658028181,2.1622,231.24,231.17,13.53469427]
[1732658028489,2.1622,231.24,231.18,13.53469427]
[1732658028697,20.0,231.22,231.18,13.53469427]
[1732658030380,22.1624,231.22,231.18,13.53469427]
[1732658030697,2.1624,231.22,231.18,13.53469427]
[1732658032194,2.1624,231.22,231.12,13.53469427]
[1732658032195,2.1624,231.22,231.19,13.53469427]
[1732658033485,20.0,231.24,231.19,13.53469427]
[1732658033687,2.1623,231.23,231.19,13.53469427]
[1732658035277,0.1,231.28,231.22,13.53469427]
[1732658035581,2.1619,231.27,231.24,13.53469427]
[1732658035782,2.1617,231.29,231.24,13.53469427]
[1732658036192,2.1617,231.29,231.23,13.53469427]
[1732658036387,2.1617,231.29,231.24,13.53469427]
[1732658036791,20.0,231.28,231.24,13.53469427]
[1732658037701,22.1619,231.28,231.24,13.53469427]
[1732658038406,22.1619,231.28,231.21,4.325]
[1732658038609,22.1619,231.28,231.22,13.53469427]
[1732658039205,35.69659427,231.28,231.2,13.53469427]
[1732658039716,2.1621,231.25,231.18,13.53469427]
[1732658039884,2.1621,231.25,231.19,13.53469427]
[1732658040607,2.1619,231.27,231.2,13.53469427]
[1732658040803,20.0,231.24,231.2,13.53469427]
[1732658041303,20.0,231.24,231.19,13.53469427]
[1732658041986,20.0,231.25,231.19,13.53469427]
[1732658042192,20.0,231.24,231.19,13.53469427]
[1732658042505,20.0,231.24,231.2,13.53469427]
[1732658042711,2.1622,231.25,231.13,4.3265]
[1732658042712,2.162,231.26,231.19,13.53469427]
[1732658042886,33.53469427,231.23,231.16,13.53469427]
[1732658043090,20.0,231.23,231.17,13.53469427]
[1732658043392,20.0,231.21,231.18,13.53469427]
[1732658043902,22.1625,231.21,231.16,13.53469427]
[1732658044083,35.69719427,231.21,231.14,13.53469427]
[1732658044288,2.1625,231.21,231.15,13.53469427]
[1732658044510,22.1625,231.21,231.17,13.53469427]
[1732658044803,22.1625,231.21,231.16,13.53469427]
[1732658045186,22.1625,231.21,231.15,13.53469427]
[1732658045389,22.1625,231.21,231.16,13.53469427]
[1732658045594,2.1625,231.21,231.16,13.53469427]
[1732658046000,2.1622,231.24,231.18,13.53469427]
[1732658046305,2.1622,231.24,231.21,13.53469427]
[1732658046515,2.1619,231.27,231.21,13.53469427]
[1732658046712,3.23100429,231.26,231.21,13.53469427]
[1732658047310,2.1621,231.25,231.19,13.53469427]
[1732658047494,3.23160219,231.24,231.18,13.53469427]
[1732658047807,15.69679427,231.25,231.17,17.86049427]
[1732658048003,15.69679427,231.25,231.17,13.53469427]
[1732658048206,16.76673424,231.24,231.14,13.53469427]
[1732658048388,13.53469427,231.2,231.13,13.53469427]
[1732658049091,13.53469427,231.21,231.14,13.53469427]
[1732658049293,2.1626,231.2,231.14,13.53469427]
[1732658050397,13.53469427,231.19,231.12,13.53469427]
[1732658050613,13.53469427,231.16,231.08,13.53469427]
[1732658050916,13.53469427,231.13,231.05,13.53469427]
[1732658051211,13.53469427,231.13,231.06,13.53469427]
[1732658051421,13.53469427,231.14,231.07,13.53469427]
[1732658051747,3.23599859,231.13,231.07,13.53469427]
[1732658051913,3.23599859,231.12,231.07,13.53469427]
[1732658052206,3.23599859,231.11,231.07,13.53469427]
[1732658052418,7.33902424,231.13,231.07,13.53469427]
[1732658052600,3.23625624,231.12,231.07,13.53469427]
[1732658052797,0.1,231.15,231.09,13.53469427]
[1732658052798,3.23625624,231.11,231.09,13.53469427]
[1732658053013,5.27582424,231.15,231.1,13.53469427]
[1732658053311,20.0,231.13,231.1,13.53469427]
[1732658053487,3.23686583,231.12,231.09,13.53469427]
[1732658053687,3.23686583,231.11,231.08,13.53469427]
[1732658053884,13.53469427,231.11,231.04,13.53469427]
[1732658054088,3.23625688,231.1,231.04,13.53469427]
[1732658054290,3.23625688,231.1,231.06,13.53469427]
[1732658054503,2.1634,231.11,231.06,13.53469427]
[1732658054715,3.23537441,231.1,231.06,13.53469427]
[1732658054887,20.0,231.13,231.07,13.53469427]
[1732658055086,16.76998624,231.12,231.05,13.53469427]
[1732658055309,16.76998624,231.11,231.04,13.53469427]
[1732658055531,15.69799427,231.13,231.06,13.53469427]
[1732658055710,20.0,231.12,231.07,13.53469427]
[1732658056529,20.0,231.12,231.07,17.86229427]
[1732658056697,20.0,231.12,231.07,4.3276]
[1732658057101,35.69799427,231.12,231.05,13.53469427]
[1732658057321,22.1633,231.12,231.06,13.53469427]
[1732658058731,2.1633,231.12,231.06,13.53469427]
[1732658059105,5.17324521,231.14,231.02,10.8215]
[1732658059306,2.2628,231.18,231.11,13.53469427]
[1732658059612,3.23250525,231.17,231.11,13.53469427]
[1732658059810,3.23250525,231.16,231.12,13.53469427]
[1732658060015,3.23250525,231.15,231.12,13.53469427]
[1732658060228,7.43604521,231.18,231.11,13.53469427]
[1732658060411,3.23229097,231.17,231.11,13.53469427]
[1732658060616,3.23229097,231.16,231.11,13.53469427]
[1732658060817,3.23229097,231.15,231.11,13.53469427]
[1732658061120,7.43604521,231.18,231.11,13.53469427]
[1732658061316,2.2628,231.18,231.11,13.53469427]
[1732658061523,3.23208326,231.17,231.13,13.53469427]
[1732658061706,15.79729427,231.2,231.13,13.53469427]
[1732658061911,3.23177749,231.19,231.13,13.53469427]
[1732658062126,16.76647176,231.19,231.12,13.53469427]
[1732658062329,3.23177749,231.18,231.11,13.53469427]
[1732658063129,16.76647176,231.18,231.11,4.3269]
[1732658063321,13.53469427,231.18,231.11,4.3269]
[1732658064112,13.53469427,231.18,231.11,13.53469427]
[1732658065336,13.53469427,231.19,231.12,13.53469427]
[1732658065631,3.23175539,231.18,231.12,13.53469427]
[1732658066307,16.76644966,231.18,231.11,4.3267]
[1732658066514,13.53469427,231.18,231.11,4.3267]
[1732658067015,13.53469427,231.17,231.11,4.3267]
[1732658067507,13.53469427,231.18,231.11,4.3267]
[1732658067710,3.23183562,231.17,231.1,13.53469427]
[1732658069127,3.23183562,231.17,231.1,17.86169427]
[1732658069335,3.23183562,231.17,231.11,13.53469427]
[1732658069539,13.53469427,231.19,231.11,13.53469427]
[1732658069705,3.23233661,231.18,231.11,13.53469427]
[1732658070130,16.76703088,231.18,231.11,13.53469427]
[1732658070427,3.23233661,231.17,231.11,8.63818419]
[1732658070625,8.63818419,231.18,231.11,8.63818419]
[1732658071338,8.63818419,231.18,231.12,4.3267]
[1732658071516,10.80088419,231.19,231.12,4.3267]
[1732658071712,11.87072257,231.18,231.12,4.3267]
[1732658072041,20.0,231.18,231.12,4.3267]
[1732658072228,0.1,231.2,231.13,8.63818419]
[1732658072406,3.33258355,231.2,231.14,8.63818419]
[1732658072609,3.33258355,231.2,231.12,4.3267]
[1732658072806,3.33258355,231.2,231.13,8.63818419]
[1732658073423,3.33258355,231.2,231.13,12.96448419]
[1732658073919,11.97076774,231.2,231.13,4.3263]
[1732658074134,11.87076774,231.19,231.13,4.3263]
[1732658074316,8.63818419,231.19,231.13,4.3263]
[1732658076438,8.63818419,231.19,231.11,8.63818419]
[1732658076737,3.23277683,231.18,231.11,8.63818419]
[1732658077737,8.63818419,231.19,231.12,4.3267]
[1732658077945,3.23283601,231.18,231.12,4.3267]
[1732658078439,8.63818419,231.17,231.09,12.96548419]
[1732658078936,8.63818419,231.11,231.05,4.328]
[1732658079139,20.0,231.15,231.06,8.63818419]
[1732658079342,8.63818419,231.14,231.06,8.63818419]
[1732658079841,8.63818419,231.13,231.07,4.3276]
[1732658080345,8.63818419,231.08,231.0,15.1511]
[1732658080534,8.63818419,231.08,231.0,23.78928419]
[1732658080732,8.63818419,231.08,231.01,8.63818419]
[1732658081046,8.63818419,231.05,231.0,4.329]
[1732658081249,8.63818419,231.04,230.97,12.96768419]
[1732658081552,8.63818419,230.98,230.92,17.7518057]
[1732658081848,8.63818419,230.98,230.92,4.3303]
[1732658082040,2.1644,231.01,230.92,12.96848419]
[1732658082041,8.63818419,230.99,230.92,12.96848419]
[1732658082346,20.0,231.02,230.98,13.51363656]
[1732658082842,13.51363656,231.06,230.99,13.51363656]
[1732658083219,13.61363656,231.06,230.98,13.51363656]
[1732658083918,3.23358672,231.05,230.98,4.3293]
[1732658084115,20.0,231.08,231.03,13.51363656]
[1732658084314,13.51363656,231.09,231.02,13.51363656]
[1732658084538,18.4979,231.11,231.01,13.51363656]
[1732658084539,16.74730444,231.08,231.01,13.51363656]
[1732658084720,13.51363656,231.08,231.0,13.51363656]
[1732658084925,13.51363656,231.08,231.01,13.51363656]
[1732658085347,13.51363656,231.08,231.01,17.84223656]
[1732658085550,13.51363656,231.08,231.01,4.3286]
[1732658085760,13.51363656,231.06,230.99,13.51363656]
[1732658086045,13.51363656,231.07,231.0,13.51363656]
[1732658086546,13.51363656,231.07,230.96,4.3297]
[1732658086848,39.45412056,231.09,231.02,13.51363656]
[1732658087347,3.23332669,231.08,231.02,13.51363656]
[1732658087519,39.45412056,231.09,231.02,13.51363656]
[1732658087718,3.23328153,231.08,231.02,13.51363656]
[1732658087923,37.29052056,231.09,231.02,13.51363656]
[1732658088122,3.23329334,231.08,231.02,13.51363656]
[1732658088347,37.29052056,231.09,231.02,13.51363656]
[1732658088730,3.23332161,231.08,231.02,13.51363656]
[1732658088937,39.45412056,231.09,231.01,17.84233656]
[1732658089138,3.23332232,231.08,231.01,17.84233656]
[1732658089447,39.45412056,231.09,231.01,17.84233656]
[1732658089651,16.74690914,231.08,231.01,4.3287]
[1732658089849,13.51363656,231.07,231.01,4.3287]
[1732658090238,13.51363656,231.08,231.01,4.3287]
[1732658090543,13.51363656,231.07,231.01,4.3287]
[1732658090735,13.51363656,231.06,230.99,13.51363656]
[1732658090929,13.51363656,231.05,230.97,13.51363656]
[1732658091135,13.51363656,231.02,230.97,4.3295]
[1732658091347,13.51363656,231.05,230.97,17.84313656]
[1732658092432,13.51363656,231.05,230.95,13.51363656]
[1732658092433,13.51363656,231.02,230.95,13.51363656]
[1732658092628,37.29052056,231.04,230.96,13.51363656]
[1732658092930,37.29052056,231.04,230.93,4.3303]
[1732658092931,23.876884,231.02,230.95,13.51363656]
[1732658093142,13.51363656,230.96,230.86,6.5946]
[1732658093470,13.51363656,230.91,230.83,13.51363656]
[1732658093634,13.51363656,230.91,230.8,6.5946]
[1732658093635,13.51363656,230.89,230.82,17.84593656]
[1732658093840,13.51363656,230.89,230.82,4.3323]
[1732658094142,13.51363656,230.91,230.83,13.51363656]
[1732658094337,13.51363656,230.9,230.83,13.51363656]
[1732658094637,13.51363656,230.9,230.82,17.84593656]
[1732658094842,13.51363656,230.9,230.83,13.51363656]
[1732658095058,13.51363656,230.92,230.85,13.51363656]
[1732658095257,13.51363656,230.92,230.85,17.84533656]
[1732658096844,13.51363656,230.91,230.84,13.51363656]
[1732658097250,13.51363656,230.92,230.84,13.51363656]
[1732658097960,13.51363656,230.92,230.85,4.3318]
[1732658099043,13.51363656,230.92,230.85,17.84543656]
[1732658099743,13.51363656,230.91,230.85,4.3318]
[1732658100145,13.51363656,230.9,230.83,13.51363656]
[1732658100452,13.51363656,230.86,230.81,4.3325]
[1732658100648,13.51363656,230.86,230.79,4.3327]
[1732658100977,13.51363656,230.86,230.79,17.84633656]
[1732658101166,13.51363656,230.87,230.8,13.51363656]
[1732658101348,13.51363656,230.88,230.81,13.51363656]
[1732658101869,0.1,230.89,230.82,13.51363656]
[1732658101870,13.51363656,230.89,230.82,13.51363656]
[1732658102169,13.61363656,230.93,230.85,13.51363656]
[1732658102353,20.0,230.9,230.86,13.51363656]
[1732658103369,20.0,230.9,230.85,17.84523656]
[1732658103554,13.51363656,230.88,230.81,13.51363656]
[1732658103739,13.51363656,230.86,230.78,13.51363656]
[1732658103936,13.51363656,230.82,230.75,24.44183656]
[1732658104569,13.51363656,230.81,230.75,10.9282]
[1732658104864,13.51363656,230.77,230.7,17.84803656]
[1732658105943,0.1,230.81,230.7,17.84803656]
[1732658105944,13.61363656,230.81,230.73,13.51363656]
[1732658106143,15.77983656,230.81,230.73,13.51363656]
[1732658106570,11.6479,230.86,230.79,13.51363656]
[1732658106571,2.1658,230.86,230.79,13.51363656]
[1732658106750,2.2658,230.86,230.81,13.51363656]
[1732658106957,31.88593656,230.9,230.83,13.51363656]
[1732658107155,13.51363656,230.89,230.81,13.51363656]
[1732658107552,13.51363656,230.89,230.82,13.51363656]
[1732658107967,15.67913656,230.89,230.82,13.51363656]
[1732658108270,13.51363656,230.88,230.81,13.51363656]
[1732658108452,13.51363656,230.88,230.8,13.51363656]
[1732658108769,13.51363656,230.88,230.81,13.51363656]
[1732658109147,13.51363656,230.89,230.82,13.51363656]
[1732658109347,23.776884,230.93,230.87,13.51363656]
[1732658109761,13.51363656,230.92,230.84,13.51363656]
[1732658110755,20.0,230.9,230.84,17.84553656]
[1732658110956,20.0,230.9,230.85,13.51363656]
[1732658111156,20.0,230.9,230.84,17.84553656]
[1732658111354,20.0,230.9,230.84,4.3319]
[1732658111763,20.0,230.9,230.84,17.84553656]
[1732658111967,35.67903656,230.9,230.82,17.84583656]
[1732658112151,23.776884,230.93,230.82,17.84583656]
[1732658112152,0.1,230.94,230.82,4.3322]
[1732658112358,2.2646,230.99,230.92,13.51363656]
[1732658112576,0.1,230.98,230.94,13.51363656]
[1732658112880,15.2899,231.0,230.94,13.51363656]
[1732658113178,17.4544,231.0,230.93,13.51363656]
[1732658113382,13.51363656,230.99,230.93,13.51363656]
[1732658113873,20.0,230.96,230.93,13.51363656]
[1732658114070,20.0,230.97,230.91,13.51363656]
[1732658114251,20.0,230.96,230.91,13.51363656]
[1732658114675,20.0,230.96,230.92,13.51363656]
[1732658114879,30.96803656,231.0,230.93,13.51363656]
[1732658114880,20.0,230.97,230.93,13.51363656]
[1732658115372,20.0,230.97,230.92,13.51363656]
[1732658116155,20.0,230.97,230.93,13.51363656]
[1732658116358,20.0,230.97,230.87,4.3314]
[1732658116359,20.0,230.97,230.91,13.51363656]
[1732658117062,20.0,230.97,230.86,10.8289]
[1732658117063,20.0,230.97,230.94,13.51363656]
[1732658117277,2.1642,231.04,230.96,13.51363656]
[1732658117587,17.7093,231.06,231.0,13.51363656]
[1732658117889,17.7093,231.06,230.99,13.51363656]
[1732658118065,15.5453,231.06,231.0,13.51363656]
[1732658118266,2.1635,231.1,231.04,13.51363656]
[1732658118467,15.77713656,231.1,231.03,13.51363656]
[1732658119274,15.77713656,231.1,231.01,13.51363656]
[1732658119585,20.0,231.06,231.02,13.51363656]
[1732658120164,20.0,231.07,231.02,13.51363656]
[1732658121084,20.0,231.07,231.01,4.3287]
[1732658121085,20.0,231.08,231.04,13.51363656]
[1732658122379,20.0,231.09,231.05,13.51363656]
[1732658122578,20.0,231.09,231.03,13.51363656]
[1732658122783,20.0,231.09,231.0,4.329]
[1732658122784,13.51363656,231.08,231.01,13.51363656]
[1732658122977,13.51363656,231.06,230.98,13.51363656]
[1732658123168,13.51363656,231.05,230.97,13.51363656]
[1732658123367,13.51363656,231.05,230.98,13.51363656]
[1732658124274,13.51363656,231.05,230.98,17.84283656]
[1732658124586,13.51363656,231.06,230.99,13.51363656]
[1732658125175,15.67753656,231.06,230.99,13.51363656]
[1732658125691,13.51363656,231.05,230.98,13.51363656]
[1732658126263,13.51363656,231.0,230.93,13.51363656]
[1732658126888,13.51363656,231.01,230.94,13.51363656]
[1732658127095,13.51363656,230.97,230.9,17.84443656]
[1732658127389,13.51363656,230.96,230.85,10.8291]
[1732658127595,13.51363656,230.96,230.89,13.51363656]
[1732658127897,13.51363656,230.93,230.86,17.84523656]
[1732658128377,13.51363656,230.92,230.85,13.51363656]
[1732658128765,13.51363656,230.92,230.85,17.84543656]
[1732658128963,13.51363656,230.94,230.87,13.51363656]
[1732658129169,20.0,230.94,230.91,13.51363656]
[1732658129384,20.0,230.94,230.9,13.51363656]
[1732658129590,20.0,230.94,230.89,13.51363656]
[1732658129774,20.0,230.94,230.91,13.51363656]
[1732658129981,23.876884,230.98,230.91,13.51363656]
[1732658130282,20.0,230.97,230.93,13.51363656]
[1732658131385,20.0,230.96,230.91,13.51363656]
[1732658131692,20.0,230.96,230.93,13.51363656]
[1732658132080,2.2645,231.0,230.93,13.51363656]
[1732658132282,20.0,230.97,230.93,21.6294583]
[1732658132477,20.0,230.98,230.93,21.6294583]
[1732658132678,20.0,230.97,230.92,21.6294583]
[1732658132984,20.0,230.96,230.89,25.9603583]
[1732658133171,41.6294583,230.96,230.89,25.9603583]
[1732658133490,21.6294583,230.95,230.87,21.6294583]
[1732658133689,41.6294583,230.96,230.89,21.6294583]
[1732658134072,20.0,230.96,230.9,21.6294583]
[1732658135381,22.1648,230.96,230.9,21.6294583]
[1732658136684,21.6294583,230.93,230.85,21.6294583]
[1732658137068,21.6294583,230.92,230.85,21.6294583]
[1732658137268,21.6294583,230.89,230.82,21.6294583]
[1732658137491,21.6294583,230.88,230.81,21.6294583]
[1732658137675,21.6294583,230.9,230.83,21.6294583]
[1732658138172,0.1,230.93,230.8,4.3327]
[1732658138173,21.6294583,230.91,230.84,21.6294583]
[1732658138377,23.7947583,230.91,230.84,21.6294583]
[1732658138573,2.1653,230.91,230.85,21.6294583]
[1732658138778,20.0,230.89,230.85,21.6294583]
[1732658139197,2.1653,230.91,230.85,21.6294583]
[1732658139502,20.0,230.89,230.84,21.6294583]
[1732658139989,20.0,230.89,230.82,21.6294583]
[1732658140684,20.0,230.89,230.83,21.6294583]
[1732658140883,20.0,230.89,230.82,21.6294583]
[1732658141192,21.6294583,230.85,230.77,21.6294583]
[1732658141491,21.6294583,230.85,230.7,21.6294583]
[1732658141492,21.6294583,230.78,230.7,21.6294583]
[1732658141710,21.6294583,230.75,230.68,25.9644583]
[1732658141872,21.6294583,230.74,230.68,4.335]
[1732658142072,21.6294583,230.75,230.68,4.335]
[1732658142287,20.0,230.76,230.74,21.6294583]